fUST/lending_fUST_20241114
["ID","MTS","AMOUNT","RATE_DAILY","PERIOD"]
[342224016,1731598241664,-500.0,0.00016438,2]
[342224017,1731598241673,-500.0,0.00016438,2]
[342224018,1731598241683,-500.0,0.00016438,2]
[342224019,1731598241692,-500.0,0.00016438,2]
[342224020,1731598241702,-507.53714714,0.00016438,2]
[342224021,1731598241713,-500.0,0.00016438,2]
[342224022,1731598241722,-500.0,0.00016438,2]
[342224023,1731598241731,-500.0,0.00016438,2]
[342224024,1731598241740,-556.7381121,0.00016438,2]
[342224025,1731598241750,-500.0,0.00016438,2]
[342224026,1731598241759,-517.26411673,0.00016438,2]
[342224027,1731598241768,-505.56702495,0.00016438,2]
[342224028,1731598241777,-500.0,0.00016438,2]
[342224029,1731598241787,-500.0,0.00016438,2]
[342224030,1731598241798,-511.7240633,0.00016438,2]
[342224031,1731598241807,-500.0,0.00016438,2]
[342224032,1731598241817,-500.0,0.00016438,2]
[342224033,1731598241826,-519.45282185,0.00016438,2]
[342224034,1731598241835,-500.0,0.00016438,2]
[342224035,1731598241845,-500.0,0.00016438,2]
[342224036,1731598241853,-500.0,0.00016438,2]
[342224037,1731598241863,-500.0,0.00016438,2]
[342224038,1731598241873,-500.0,0.00016438,2]
[342224039,1731598241886,-561.09961792,0.00016438,2]
[342224040,1731598241895,-500.0,0.00016438,2]
[342224041,1731598241905,-500.0,0.00016438,2]
[342224042,1731598241914,-500.0,0.00016438,2]
[342224043,1731598241924,-500.0,0.00016438,2]
[342224044,1731598241933,-500.0,0.00016438,2]
[342224045,1731598241942,-500.0,0.00016438,2]
[342224046,1731598241952,-500.0,0.00016438,2]
[342224047,1731598241961,-500.0,0.00016438,2]
[342224048,1731598241970,-500.0,0.00016438,2]
[342224049,1731598241980,-500.0,0.00016438,2]
[342224050,1731598241989,-512.68471077,0.00016438,2]
[342224051,1731598241998,-500.0,0.00016438,2]
[342224052,1731598242007,-500.0,0.00016438,2]
[342224053,1731598242017,-500.0,0.00016438,2]
[342224054,1731598242026,-500.0,0.00016438,2]
[342224055,1731598242035,-500.0,0.00016438,2]
[342224056,1731598242044,-500.0,0.00016438,2]
[342224057,1731598242053,-500.0,0.00016438,2]
[342224058,1731598242062,-500.0,0.00016438,2]
[342224059,1731598242071,-500.0,0.00016438,2]
[342224060,1731598242080,-500.0,0.00016438,2]
[342224061,1731598242089,-500.0,0.00016438,2]
[342224062,1731598242098,-500.0,0.00016438,2]
[342224063,1731598242107,-500.0,0.00016438,2]
[342224064,1731598242116,-521.17695093,0.00016438,2]
[342224065,1731598242125,-500.0,0.00016438,2]
[342224066,1731598242138,-500.0,0.00016438,2]
[342224067,1731598242147,-500.0,0.00016438,2]
[342224068,1731598242156,-500.0,0.00016438,2]
[342224069,1731598242166,-500.0,0.00016438,2]
[342224070,1731598242175,-500.0,0.00016438,2]
[342224071,1731598242184,-500.0,0.00016438,2]
[342224072,1731598242194,-504.80789673,0.00016438,2]
[342224073,1731598242203,-500.0,0.00016438,2]
[342224074,1731598242212,-500.0,0.00016438,2]
[342224075,1731598242221,-500.0,0.00016438,2]
[342224076,1731598242230,-500.0,0.00016438,2]
[342224077,1731598242239,-500.0,0.00016438,2]
[342224078,1731598242249,-500.0,0.00016438,2]
[342224079,1731598242259,-501.66302595,0.00016438,2]
[342224080,1731598242269,-500.0,0.00016438,2]
[342224081,1731598242280,-504.66308532,0.00016438,2]
[342224082,1731598242289,-502.94224887,0.00016438,2]
[342224083,1731598242299,-500.0,0.00016438,2]
[342224084,1731598242309,-167.52774122,0.00016438,2]
[342224085,1731598242319,-515.41747576,0.00016438,2]
[342224086,1731598242328,-500.0,0.00016438,2]
[342224087,1731598242337,-500.0,0.00016438,2]
[342224088,1731598242347,-504.30542475,0.00016438,2]
[342224089,1731598242356,-438.92394953,0.00016438,2]
[342224090,1731598242365,-500.0,0.00016438,2]
[342224091,1731598242375,-500.0,0.00016438,2]
[342224092,1731598242389,-502.1623194,0.00016438,2]
[342224093,1731598242398,-1891.66,0.00016438,2]
[342224094,1731598242407,-500.0,0.00016438,2]
[342224095,1731598242416,-500.0,0.00016438,2]
[342224096,1731598242425,-500.0,0.00016438,2]
[342224097,1731598242434,-399.99236396,0.00016438,2]
[342224098,1731598242444,-500.0,0.00016438,2]
[342224099,1731598242453,-500.0,0.00016438,2]
[342224100,1731598242463,-500.0,0.00016438,2]
[342224101,1731598242472,-500.0,0.00016438,2]
[342224102,1731598242482,-504.58683981,0.00016438,2]
[342224103,1731598242491,-318.39794464,0.00016438,2]
[342224104,1731598242500,-500.0,0.00016438,2]
[342224105,1731598242510,-500.0,0.00016438,2]
[342224106,1731598242519,-501.2519026,0.00016438,2]
[342224107,1731598242529,-500.0,0.00016438,2]
[342224108,1731598242539,-501.37194973,0.00016438,2]
[342224109,1731598242548,-78.92171891,0.00016438,2]
[342224110,1731598242568,-421.07828109,0.00016438,2]
[342224111,1731598242577,-500.0,0.00016438,2]
[342224112,1731598242586,-500.0,0.00016438,2]
[342224113,1731598242596,-500.0,0.00016438,2]
[342224114,1731598242605,-500.0,0.00016438,2]
[342224115,1731598242614,-500.0,0.00016438,2]
[342224116,1731598242623,-500.0,0.00016438,2]
[342224117,1731598242637,-500.0,0.00016438,2]
[342224118,1731598242646,-500.0,0.00016438,2]
[342224119,1731598242656,-500.0,0.00016438,2]
[342224120,1731598242665,-500.0,0.00016438,2]
[342224121,1731598242674,-500.0,0.00016438,2]
[342224122,1731598242683,-559.28,0.00016438,2]
[342224123,1731598242693,-500.0,0.00016438,2]
[342224124,1731598242702,-500.0,0.00016438,2]
[342224125,1731598242711,-500.0,0.00016438,2]
[342224126,1731598242720,-500.0,0.00016438,2]
[342224127,1731598242729,-500.0,0.00016438,2]
[342224128,1731598242738,-500.0,0.00016438,2]
[342224129,1731598242747,-371.34171886,0.00016438,2]
[342224130,1731598242759,-128.65828114,0.00016438,2]
[342224131,1731598242768,-500.0,0.00016438,2]
[342224132,1731598242777,-500.0,0.00016438,2]
[342224133,1731598242788,-525.26169768,0.00016438,2]
[342224134,1731598242799,-500.0,0.00016438,2]
[342224135,1731598242808,-500.0,0.00016438,2]
[342224136,1731598242817,-500.0,0.00016438,2]
[342224137,1731598242826,-500.0,0.00016438,2]
[342224138,1731598242835,-500.0,0.00016438,2]
[342224139,1731598242844,-308.72135884,0.00016438,2]
[342224140,1731598242853,-500.0,0.00016438,2]
[342224141,1731598242861,-500.0,0.00016438,2]
[342224142,1731598242873,-500.0,0.00016438,2]
[342224143,1731598242884,-500.0,0.00016438,2]
[342224144,1731598242893,-500.0,0.00016438,2]
[342224145,1731598242902,-500.0,0.00016438,2]
[342224146,1731598242911,-500.0,0.00016438,2]
[342224147,1731598242920,-411.60554246,0.00016438,2]
[342224148,1731598242929,-500.0,0.00016438,2]
[342224149,1731598242938,-500.0,0.00016438,2]
[342224150,1731598242947,-500.0,0.00016438,2]
[342224151,1731598242957,-508.83133647,0.00016438,2]
[342224152,1731598242967,-500.0,0.00016438,2]
[342224154,1731598242976,-620.65085214,0.00016438,2]
[342224156,1731598242985,-500.0,0.00016438,2]
[342224157,1731598242995,-412.64484764,0.00016438,2]
[342224158,1731598243004,-500.0,0.00016438,2]
[342224159,1731598243013,-500.0,0.00016438,2]
[342224160,1731598243022,-500.0,0.00016438,2]
[342224161,1731598243031,-500.0,0.00016438,2]
[342224164,1731598243040,-500.0,0.00016438,2]
[342224168,1731598243050,-500.0,0.00016438,2]
[342224171,1731598243059,-500.0,0.00016438,2]
[342224172,1731598243068,-521.00240697,0.00016438,2]
[342224173,1731598243077,-500.0,0.00016438,2]
[342224174,1731598243087,-467.62367666,0.00016438,2]
[342224175,1731598243119,-32.37632334,0.00016438,2]
[342224176,1731598243129,-233.82958675,0.00016438,2]
[342224185,1731598243647,-201.57267244,0.00014496,2]
[342224186,1731598243656,-266.17041325,0.00016438,2]
[342224187,1731598243666,-500.0,0.00016438,2]
[342224188,1731598243675,-500.0,0.00016438,2]
[342224189,1731598243684,-447.03970118,0.00016438,2]
[342224190,1731598243693,-500.0,0.00016438,2]
[342224191,1731598243702,-500.0,0.00016438,2]
[342224192,1731598243712,-509.4382669,0.00016438,2]
[342224193,1731598243721,-500.0,0.00016438,2]
[342224194,1731598243731,-500.0,0.00016438,2]
[342224195,1731598243740,-430.19195236,0.00016438,2]
[342224196,1731598243749,-6.58699386,0.00016438,2]
[342224238,1731598246573,-419.52770081,0.00016438,2]
[342224239,1731598246625,-73.88530533,0.00016438,2]
[342224240,1731598246638,-307.31471747,0.00016438,2]
[342224244,1731598677846,730.0,0.00027,60]
[342224269,1731599369986,2010.0,0.00027,60]
[342224271,1731599392524,10000.0,0.00016,10]
[342224274,1731599402922,10000.0,0.00016,10]
[342224275,1731599424542,1663.59,0.00016,10]
[342224316,1731599432838,-380.0,0.00013973,2]
[342224317,1731599432849,-300.0,0.00014813,2]
[342224319,1731599432864,-300.0,0.00014813,2]
[342224321,1731599432875,-16268.54465152,0.00014814,2]
[342224322,1731599432887,-432.59974027,0.00014814,2]
[342224323,1731599432900,-882.01,0.00014814,2]
[342224327,1731599432926,-7316.84560821,0.00014814,2]
[342224329,1731599432935,-250.0,0.00014879,2]
[342224331,1731599432945,-332.414195,0.00014886,2]
[342224333,1731599432954,-248.0535565,0.00015058,2]
[342224335,1731599432964,-420.0,0.00016216,2]
[342224337,1731599432974,-420.0,0.00016295,2]
[342224339,1731599432984,-1877.39226641,0.00016337,2]
[342224341,1731599432993,-500.0,0.00016337,2]
[342224343,1731599433002,-299.12972258,0.00016337,2]
[342224345,1731599433011,-260.20129558,0.00016337,2]
[342224347,1731599433021,-546.03298706,0.00016337,2]
[342224349,1731599433030,-187.51648973,0.00016337,2]
[342224351,1731599433040,-325.8572258,0.00016337,2]
[342224353,1731599433050,-179.38791836,0.00016337,2]
[342224356,1731599433060,-166.82224597,0.00016337,2]
[342224359,1731599433070,-500.0,0.00016337,2]
[342224362,1731599433080,-195.06569111,0.00016337,2]
[342224365,1731599433091,-500.0,0.00016337,2]
[342224367,1731599433100,-500.0,0.00016337,2]
[342224369,1731599433114,-380.42535446,0.00016337,2]
[342224371,1731599433124,-500.0,0.00016337,2]
[342224372,1731599433133,-500.0,0.00016337,2]
[342224373,1731599433143,-500.0,0.00016337,2]
[342224374,1731599433153,-500.0,0.00016337,2]
[342224375,1731599433163,-500.0,0.00016337,2]
[342224377,1731599433173,-500.0,0.00016337,2]
[342224379,1731599433183,-500.0,0.00016337,2]
[342224381,1731599433194,-500.0,0.00016337,2]
[342224383,1731599433206,-468.15820182,0.00016337,2]
[342224385,1731599433216,-211.15752371,0.00016337,2]
[342224387,1731599433227,-601.02247945,0.00016337,2]
[342224389,1731599433237,-500.0,0.00016337,2]
[342224391,1731599433247,-500.0,0.00016337,2]
[342224393,1731599433257,-500.0,0.00016337,2]
[342224395,1731599433267,-500.0,0.00016337,2]
[342224397,1731599433278,-500.0,0.00016337,2]
[342224399,1731599433287,-500.0,0.00016337,2]
[342224401,1731599433296,-500.0,0.00016337,2]
[342224403,1731599433306,-500.0,0.00016337,2]
[342224405,1731599433316,-500.0,0.00016337,2]
[342224407,1731599433327,-500.0,0.00016337,2]
[342224409,1731599433336,-500.0,0.00016337,2]
[342224410,1731599433347,-225.89193787,0.00016337,2]
[342224411,1731599433357,-1585.72802065,0.00016338,2]
[342224412,1731599433373,-134594.05278493,0.00016338,2]
[342224413,1731599433387,-1092.012501,0.00016338,2]
[342224414,1731599433416,-6974.31891106,0.00016338,2]
[342224420,1731599438805,-619.69894878,0.00016337,2]
[342224421,1731599438929,-372.74897449,0.00016337,2]
[342224422,1731599438941,-59006.94234761,0.00016338,2]
[342224423,1731599438950,-7846.93061961,0.00016351,2]
[342224424,1731599438960,-500.0,0.00016438,2]
[342224425,1731599438969,-500.0,0.00016438,2]
[342224426,1731599438978,-500.0,0.00016438,2]
[342224427,1731599438987,-515.34712372,0.00016438,2]
[342224428,1731599438997,-503.91967783,0.00016438,2]
[342224429,1731599439006,-422.00687028,0.00016438,2]
[342224430,1731599439015,-500.0,0.00016438,2]
[342224431,1731599439024,-500.0,0.00016438,2]
[342224432,1731599439034,-501.24274225,0.00016438,2]
[342224433,1731599439043,-500.0,0.00016438,2]
[342224434,1731599439052,-510.4734784,0.00016438,2]
[342224435,1731599439060,-508.63287494,0.00016438,2]
[342224436,1731599439069,-500.76138115,0.00016438,2]
[342224437,1731599439078,-507.68152786,0.00016438,2]
[342224438,1731599439095,-500.0,0.00016438,2]
[342224439,1731599439108,-500.0,0.00016438,2]
[342224440,1731599439122,-500.0,0.00016438,2]
[342224441,1731599439131,-500.0,0.00016438,2]
[342224442,1731599439141,-500.48309827,0.00016438,2]
[342224443,1731599439150,-500.0,0.00016438,2]
[342224444,1731599439159,-1655.2,0.00016438,2]
[342224445,1731599439168,-500.0,0.00016438,2]
[342224446,1731599439178,-500.0,0.00016438,2]
[342224447,1731599439188,-500.0,0.00016438,2]
[342224448,1731599439201,-500.0,0.00016438,2]
[342224449,1731599439211,-500.0,0.00016438,2]
[342224450,1731599439221,-562.04,0.00016438,2]
[342224451,1731599439230,-500.0,0.00016438,2]
[342224452,1731599439242,-500.0,0.00016438,2]
[342224453,1731599439252,-500.0,0.00016438,2]
[342224454,1731599439262,-500.0,0.00016438,2]
[342224455,1731599439273,-500.0,0.00016438,2]
[342224456,1731599439282,-500.0,0.00016438,2]
[342224457,1731599439292,-500.0,0.00016438,2]
[342224458,1731599439302,-514.29422425,0.00016438,2]
[342224459,1731599439311,-500.0,0.00016438,2]
[342224460,1731599439320,-500.0,0.00016438,2]
[342224462,1731599439330,-500.0,0.00016438,2]
[342224464,1731599439339,-500.0,0.00016438,2]
[342224466,1731599439349,-500.0,0.00016438,2]
[342224468,1731599439359,-500.0,0.00016438,2]
[342224470,1731599439374,-500.0,0.00016438,2]
[342224472,1731599439384,-500.0,0.00016438,2]
[342224474,1731599439393,-500.0,0.00016438,2]
[342224476,1731599439402,-500.0,0.00016438,2]
[342224478,1731599439412,-500.0,0.00016438,2]
[342224480,1731599439421,-500.0,0.00016438,2]
[342224483,1731599439431,-171.29505851,0.00016438,2]
[342224503,1731599440717,-328.70494149,0.00016438,2]
[342224504,1731599440727,-500.0,0.00016438,2]
[342224506,1731599440739,-371.94527652,0.00016438,2]
[342224507,1731599440749,-504.57210303,0.00016438,2]
[342224508,1731599440759,-500.0,0.00016438,2]
[342224509,1731599440769,-500.0,0.00016438,2]
[342224510,1731599440779,-500.0,0.00016438,2]
[342224512,1731599440788,-327.29767896,0.00016438,2]
[342224516,1731599440865,-172.70232104,0.00016438,2]
[342224517,1731599440891,-500.0,0.00016438,2]
[342224518,1731599440901,-500.0,0.00016438,2]
[342224519,1731599440911,-619.90230181,0.00016438,2]
[342224520,1731599440922,-500.0,0.00016438,2]
[342224521,1731599440932,-500.0,0.00016438,2]
[342224522,1731599440942,-206.46454937,0.00016438,2]
[342224523,1731599440955,-322.76957543,0.00016438,2]
[342224524,1731599440966,-187.2593549,0.00016438,2]
[342224549,1731599444011,-312.7406451,0.00016438,2]
[342224550,1731599444022,-582.31915636,0.00016438,2]
[342224551,1731599444031,-546.50307513,0.00016438,2]
[342224552,1731599444042,-276.98296961,0.00016438,2]
[342224553,1731599444052,-500.0,0.00016438,2]
[342224555,1731599444062,-500.0,0.00016438,2]
[342224557,1731599444072,-642.59252591,0.00016438,2]
[342224558,1731599444082,-500.0,0.00016438,2]
[342224559,1731599444092,-500.0,0.00016438,2]
[342224560,1731599444101,-500.0,0.00016438,2]
[342224561,1731599444113,-500.0,0.00016438,2]
[342224562,1731599444127,-500.0,0.00016438,2]
[342224563,1731599444137,-500.0,0.00016438,2]
[342224564,1731599444147,-500.0,0.00016438,2]
[342224565,1731599444157,-500.0,0.00016438,2]
[342224566,1731599444168,-500.0,0.00016438,2]
[342224567,1731599444178,-500.0,0.00016438,2]
[342224568,1731599444188,-637.54,0.00016438,2]
[342224569,1731599444198,-528.52437803,0.00016438,2]
[342224570,1731599444212,-500.0,0.00016438,2]
[342224571,1731599444223,-505.32128763,0.00016438,2]
[342224572,1731599444235,-500.0,0.00016438,2]
[342224573,1731599444245,-521.78541928,0.00016438,2]
[342224574,1731599444255,-511.93678218,0.00016438,2]
[342224575,1731599444266,-500.0,0.00016438,2]
[342224576,1731599444276,-500.0,0.00016438,2]
[342224577,1731599444288,-500.0,0.00016438,2]
[342224578,1731599444298,-508.04452742,0.00016438,2]
[342224579,1731599444307,-500.0,0.00016438,2]
[342224580,1731599444318,-529.62788851,0.00016438,2]
[342224581,1731599444328,-500.0,0.00016438,2]
[342224582,1731599444338,-500.0,0.00016438,2]
[342224583,1731599444348,-344.12355272,0.00016438,2]
[342224584,1731599444359,-500.0,0.00016438,2]
[342224585,1731599444372,-469.60787889,0.00016438,2]
[342224586,1731599444383,-500.0,0.00016438,2]
[342224587,1731599444392,-277.1,0.00016438,2]
[342224588,1731599444402,-500.0,0.00016438,2]
[342224589,1731599444412,-540.75507523,0.00016438,2]
[342224590,1731599444423,-500.0,0.00016438,2]
[342224591,1731599444433,-500.0,0.00016438,2]
[342224592,1731599444443,-500.0,0.00016438,2]
[342224593,1731599444453,-500.0,0.00016438,2]
[342224594,1731599444463,-500.67834814,0.00016438,2]
[342224595,1731599444473,-500.0,0.00016438,2]
[342224596,1731599444483,-500.0,0.00016438,2]
[342224597,1731599444493,-500.0,0.00016438,2]
[342224598,1731599444503,-500.0,0.00016438,2]
[342224599,1731599444513,-500.0,0.00016438,2]
[342224600,1731599444523,-500.0,0.00016438,2]
[342224601,1731599444533,-500.0,0.00016438,2]
[342224602,1731599444543,-500.0,0.00016438,2]
[342224603,1731599444552,-500.0,0.00016438,2]
[342224604,1731599444562,-500.0,0.00016438,2]
[342224605,1731599444572,-500.0,0.00016438,2]
[342224606,1731599444582,-500.0,0.00016438,2]
[342224607,1731599444591,-510.79680822,0.00016438,2]
[342224608,1731599444601,-500.0,0.00016438,2]
[342224609,1731599444611,-500.0,0.00016438,2]
[342224610,1731599444627,-500.0,0.00016438,2]
[342224611,1731599444636,-500.0,0.00016438,2]
[342224612,1731599444646,-500.0,0.00016438,2]
[342224613,1731599444656,-502.3520755,0.00016438,2]
[342224614,1731599444667,-500.0,0.00016438,2]
[342224615,1731599444677,-500.0,0.00016438,2]
[342224616,1731599444686,-500.0,0.00016438,2]
[342224617,1731599444696,-500.0,0.00016438,2]
[342224618,1731599444706,-500.0,0.00016438,2]
[342224619,1731599444716,-559.69826302,0.00016438,2]
[342224620,1731599444726,-504.02605905,0.00016438,2]
[342224621,1731599444738,-500.0,0.00016438,2]
[342224622,1731599444747,-500.0,0.00016438,2]
[342224623,1731599444759,-378.91152575,0.00016438,2]
[342224624,1731599444768,-500.0,0.00016438,2]
[342224625,1731599444778,-159.06956169,0.00016438,2]
[342224626,1731599444788,-522.28,0.00016438,2]
[342224627,1731599444797,-500.0,0.00016438,2]
[342224628,1731599444808,-500.0,0.00016438,2]
[342224629,1731599444818,-500.0,0.00016438,2]
[342224630,1731599444827,-500.0,0.00016438,2]
[342224631,1731599444837,-500.0,0.00016438,2]
[342224632,1731599444848,-500.0,0.00016438,2]
[342224633,1731599444858,-426.0784557,0.00016438,2]
[342224634,1731599444871,-500.0,0.00016438,2]
[342224635,1731599444880,-500.0,0.00016438,2]
[342224636,1731599444890,-500.0,0.00016438,2]
[342224637,1731599444899,-500.0,0.00016438,2]
[342224638,1731599444908,-500.0,0.00016438,2]
[342224639,1731599444918,-500.0,0.00016438,2]
[342224640,1731599444928,-500.0,0.00016438,2]
[342224641,1731599444939,-532.06,0.00016438,2]
[342224642,1731599444949,-500.0,0.00016438,2]
[342224643,1731599444960,-500.0,0.00016438,2]
[342224644,1731599444970,-500.0,0.00016438,2]
[342224645,1731599444979,-712.41,0.00016438,2]
[342224646,1731599444988,-500.0,0.00016438,2]
[342224647,1731599444998,-500.0,0.00016438,2]
[342224648,1731599445007,-504.73,0.00016438,2]
[342224649,1731599445017,-500.0,0.00016438,2]
[342224650,1731599445026,-500.0,0.00016438,2]
[342224651,1731599445036,-500.0,0.00016438,2]
[342224652,1731599445046,-500.0,0.00016438,2]
[342224653,1731599445055,-519.52586527,0.00016438,2]
[342224654,1731599445065,-500.0,0.00016438,2]
[342224655,1731599445074,-500.0,0.00016438,2]
[342224656,1731599445084,-500.0,0.00016438,2]
[342224657,1731599445094,-634.73,0.00016438,2]
[342224658,1731599445103,-500.0,0.00016438,2]
[342224659,1731599445112,-1000.0,0.00016438,2]
[342224660,1731599445124,-635.70828383,0.00016438,2]
[342224661,1731599445133,-500.0,0.00016438,2]
[342224662,1731599445143,-500.0,0.00016438,2]
[342224663,1731599445152,-508.91,0.00016438,2]
[342224664,1731599445161,-500.0,0.00016438,2]
[342224665,1731599445172,-500.0,0.00016438,2]
[342224666,1731599445181,-500.0,0.00016438,2]
[342224667,1731599445192,-526.23021602,0.00016438,2]
[342224668,1731599445202,-500.0,0.00016438,2]
[342224669,1731599445213,-500.0,0.00016438,2]
[342224670,1731599445223,-500.0,0.00016438,2]
[342224671,1731599445233,-500.0,0.00016438,2]
[342224672,1731599445242,-500.0,0.00016438,2]
[342224673,1731599445251,-451.7016809,0.00016438,2]
[342224674,1731599445261,-500.0,0.00016438,2]
[342224675,1731599445271,-367.17776272,0.00016438,2]
[342224676,1731599445281,-500.0,0.00016438,2]
[342224677,1731599445291,-500.0,0.00016438,2]
[342224678,1731599445301,-509.2864822,0.00016438,2]
[342224679,1731599445310,-500.0,0.00016438,2]
[342224680,1731599445320,-552.82293825,0.00016438,2]
[342224681,1731599445329,-500.0,0.00016438,2]
[342224682,1731599445339,-500.0,0.00016438,2]
[342224683,1731599445348,-500.0,0.00016438,2]
[342224684,1731599445357,-500.0,0.00016438,2]
[342224685,1731599445368,-510.91564455,0.00016438,2]
[342224686,1731599445378,-500.0,0.00016438,2]
[342224687,1731599445388,-501.35859984,0.00016438,2]
[342224688,1731599445398,-500.0,0.00016438,2]
[342224689,1731599445408,-537.94259442,0.00016438,2]
[342224690,1731599445417,-500.0,0.00016438,2]
[342224691,1731599445427,-500.0,0.00016438,2]
[342224692,1731599445437,-516.92069076,0.00016438,2]
[342224693,1731599445446,-500.0,0.00016438,2]
[342224694,1731599445456,-500.0,0.00016438,2]
[342224695,1731599445466,-500.0,0.00016438,2]
[342224696,1731599445477,-500.0,0.00016438,2]
[342224697,1731599445487,-500.0,0.00016438,2]
[342224698,1731599445496,-500.0,0.00016438,2]
[342224699,1731599445505,-543.83523044,0.00016438,2]
[342224700,1731599445515,-500.0,0.00016438,2]
[342224701,1731599445524,-1586.73,0.00016438,2]
[342224702,1731599445533,-571.42081812,0.00016438,2]
[342224703,1731599445543,-500.0,0.00016438,2]
[342224704,1731599445552,-500.0,0.00016438,2]
[342224705,1731599445562,-500.0,0.00016438,2]
[342224706,1731599445572,-239.10963189,0.00016438,2]
[342224707,1731599445581,-565.89,0.00016438,2]
[342224708,1731599445591,-500.0,0.00016438,2]
[342224709,1731599445600,-500.0,0.00016438,2]
[342224710,1731599445609,-500.0,0.00016438,2]
[342224711,1731599445622,-500.0,0.00016438,2]
[342224712,1731599445631,-500.0,0.00016438,2]
[342224713,1731599445640,-500.0,0.00016438,2]
[342224714,1731599445650,-500.0,0.00016438,2]
[342224715,1731599445659,-500.0,0.00016438,2]
[342224716,1731599445669,-500.0,0.00016438,2]
[342224717,1731599445679,-500.0,0.00016438,2]
[342224718,1731599445688,-449.75762169,0.00016438,2]
[342224719,1731599445698,-500.0,0.00016438,2]
[342224720,1731599445707,-500.0,0.00016438,2]
[342224721,1731599445716,-500.0,0.00016438,2]
[342224722,1731599445726,-708.92,0.00016438,2]
[342224723,1731599445735,-506.42493599,0.00016438,2]
[342224724,1731599445745,-500.0,0.00016438,2]
[342224725,1731599445755,-536.1,0.00016438,2]
[342224726,1731599445765,-500.0,0.00016438,2]
[342224727,1731599445775,-501.97607087,0.00016438,2]
[342224728,1731599445784,-500.0,0.00016438,2]
[342224729,1731599445793,-500.83028095,0.00016438,2]
[342224730,1731599445803,-500.0,0.00016438,2]
[342224731,1731599445812,-848.72,0.00016438,2]
[342224732,1731599445822,-500.0,0.00016438,2]
[342224733,1731599445831,-464.83068851,0.00016438,2]
[342224734,1731599445841,-500.0,0.00016438,2]
[342224735,1731599445850,-1473.67,0.00016438,2]
[342224736,1731599445860,-500.0,0.00016438,2]
[342224737,1731599445874,-507.53598651,0.00016438,2]
[342224738,1731599445884,-500.0,0.00016438,2]
[342224739,1731599445894,-500.0,0.00016438,2]
[342224740,1731599445903,-500.0,0.00016438,2]
[342224741,1731599445913,-500.0,0.00016438,2]
[342224742,1731599445924,-500.0,0.00016438,2]
[342224743,1731599445934,-500.0,0.00016438,2]
[342224744,1731599445943,-500.0,0.00016438,2]
[342224745,1731599445953,-500.0,0.00016438,2]
[342224746,1731599445963,-500.0,0.00016438,2]
[342224747,1731599445973,-500.0,0.00016438,2]
[342224748,1731599445983,-500.0,0.00016438,2]
[342224749,1731599445992,-500.0,0.00016438,2]
[342224750,1731599446002,-500.0,0.00016438,2]
[342224751,1731599446011,-500.0,0.00016438,2]
[342224752,1731599446020,-597.37,0.00016438,2]
[342224753,1731599446031,-979.57,0.00016438,2]
[342224754,1731599446041,-979.57,0.00016438,2]
[342224755,1731599446051,-979.57,0.00016438,2]
[342224756,1731599446061,-979.57,0.00016438,2]